[Event "*** Titled Tuesday Blitz"]
[Site "Chess.com"]
[Date "2021.04.06"]
[Round "11"]
[White "Das_Virus_2020"]
[Black "kamilianin235"]
[Result "1/2-1/2"]
[WhiteElo "2409"]
[BlackElo "2256"]
[TimeControl "180+1"]
[EndTime "12:08:07 PDT"]
[Termination "Game drawn by repetition"]

1. e4 {[%clk 0:03:00.9]} 1... c5 {[%clk 0:02:59.9]} 2. c3 {[%clk 0:02:59.7]}
2... d6 {[%clk 0:02:59.3]} 3. d4 {[%clk 0:02:59.3]} 3... Nf6 {[%clk 0:02:57.1]}
4. Bd3 {[%clk 0:02:58.5]} 4... g6 {[%clk 0:02:55.6]} 5. f3 {[%clk 0:02:58.3]}
5... Bg7 {[%clk 0:02:53.6]} 6. Ne2 {[%clk 0:02:58.4]} 6... O-O {[%clk
0:02:48.5]} 7. Be3 {[%clk 0:02:58.3]} 7... b6 {[%clk 0:02:46.8]} 8. Nd2 {[%clk
0:02:55.8]} 8... Nbd7 {[%clk 0:02:45.6]} 9. O-O {[%clk 0:02:54.4]} 9... Bb7
{[%clk 0:02:44.9]} 10. a3 {[%clk 0:02:53.1]} 10... Qc7 {[%clk 0:02:42.4]} 11. b4
{[%clk 0:02:51.9]} 11... e5 {[%clk 0:02:41]} 12. bxc5 {[%clk 0:02:48.4]} 12...
bxc5 {[%clk 0:02:39.7]} 13. d5 {[%clk 0:02:48.5]} 13... Rab8 {[%clk 0:02:37.4]}
14. a4 {[%clk 0:02:43.1]} 14... Ne8 {[%clk 0:02:24.9]} 15. a5 {[%clk 0:02:23.4]}
15... Ba8 {[%clk 0:02:16.4]} 16. Nc4 {[%clk 0:02:20.8]} 16... f5 {[%clk
0:02:14.3]} 17. Qa4 {[%clk 0:02:16.8]} 17... f4 {[%clk 0:02:08.8]} 18. Bf2
{[%clk 0:02:15.6]} 18... g5 {[%clk 0:02:00.4]} 19. h3 {[%clk 0:02:11.5]} 19...
Nef6 {[%clk 0:02:00.4]} 20. Rab1 {[%clk 0:02:04.5]} 20... h5 {[%clk 0:01:57.7]}
21. Rxb8 {[%clk 0:01:48.9]} 21... Rxb8 {[%clk 0:01:58.6]} 22. Rb1 {[%clk
0:01:46]} 22... Rxb1+ {[%clk 0:01:51.3]} 23. Bxb1 {[%clk 0:01:46.9]} 23... Qb8
{[%clk 0:01:47.2]} 24. Bc2 {[%clk 0:01:43.6]} 24... Bb7 {[%clk 0:01:41.7]} 25.
Qb5 {[%clk 0:01:37.4]} 25... Bf8 {[%clk 0:01:35.8]} 26. Ba4 {[%clk 0:01:27.8]}
26... Bc8 {[%clk 0:01:29.4]} 27. Kf1 {[%clk 0:01:07.4]} 27... Qxb5 {[%clk
0:01:22.5]} 28. Bxb5 {[%clk 0:01:06.7]} 28... Nb8 {[%clk 0:01:22.9]} 29. Ke1
{[%clk 0:01:03.3]} 29... Ba6 {[%clk 0:01:16.5]} 30. Bxa6 {[%clk 0:01:02.2]}
30... Nxa6 {[%clk 0:01:16.6]} 31. Kd2 {[%clk 0:01:02.3]} 31... Nc7 {[%clk
0:01:13.8]} 32. Nc1 {[%clk 0:00:50.1]} 32... Nd7 {[%clk 0:01:10.3]} 33. Nd3
{[%clk 0:00:48]} 33... Kf7 {[%clk 0:01:07.5]} 34. Kc2 {[%clk 0:00:48.1]} 34...
Nb8 {[%clk 0:01:04]} 35. Kb3 {[%clk 0:00:47.4]} 35... Nba6 {[%clk 0:01:02.3]}
36. Ka4 {[%clk 0:00:47.1]} 36... Nb8 {[%clk 0:01:00.4]} 37. Ne1 {[%clk 0:00:45]}
37... Nd7 {[%clk 0:00:57.6]} 38. Nc2 {[%clk 0:00:44.7]} 38... Ke8 {[%clk
0:00:46.5]} 39. N2a3 {[%clk 0:00:44.5]} 39... Kd8 {[%clk 0:00:44.8]} 40. Nb5
{[%clk 0:00:44.4]} 40... Nxb5 {[%clk 0:00:41.9]} 41. Kxb5 {[%clk 0:00:45.3]}
41... Nb8 {[%clk 0:00:41.9]} 42. a6 {[%clk 0:00:39.9]} 42... Kc7 {[%clk
0:00:40.9]} 43. Na5 {[%clk 0:00:38.1]} 43... Be7 {[%clk 0:00:37.2]} 44. c4
{[%clk 0:00:35.8]} 44... Bf8 {[%clk 0:00:34.7]} 45. Be1 {[%clk 0:00:34.2]} 45...
Be7 {[%clk 0:00:32.2]} 46. Nb7 {[%clk 0:00:33.5]} 46... Kc8 {[%clk 0:00:28.5]}
47. Ba5 {[%clk 0:00:31.9]} 47... Nd7 {[%clk 0:00:22.8]} 48. Bd2 {[%clk
0:00:23.9]} 48... Nb8 {[%clk 0:00:21.3]} 49. Na5 {[%clk 0:00:23.3]} 49... Kc7
{[%clk 0:00:19.9]} 50. Nc6 {[%clk 0:00:20.3]} 50... Nxc6 {[%clk 0:00:15.4]} 51.
dxc6 {[%clk 0:00:21.2]} 51... Bd8 {[%clk 0:00:14.2]} 52. Ba5+ {[%clk 0:00:19.3]}
52... Kc8 {[%clk 0:00:12.7]} 53. Bd2 {[%clk 0:00:18.2]} 53... Kc7 {[%clk
0:00:10.3]} 54. Ba5+ {[%clk 0:00:17.8]} 54... Kc8 {[%clk 0:00:09.7]} 55. Bd2
{[%clk 0:00:17.6]} 55... Bb6 {[%clk 0:00:08.4]} 56. Bc3 {[%clk 0:00:17.1]} 56...
Bd8 {[%clk 0:00:07.7]} 57. Bd2 {[%clk 0:00:17]} 1/2-1/2

[Event "*** Titled Tuesday Blitz"]
[Site "Chess.com"]
[Date "2021.04.06"]
[Round "11"]
[White "FairChess_on_YouTube"]
[Black "MirMan90"]
[Result "1/2-1/2"]
[WhiteElo "2975"]
[BlackElo "2691"]
[TimeControl "180+1"]
[EndTime "12:08:08 PDT"]
[Termination "Game drawn by repetition"]

1. d4 {[%clk 0:03:00.9]} 1... Nf6 {[%clk 0:02:59.5]} 2. Bg5 {[%clk 0:03:00.7]}
2... e6 {[%clk 0:02:54.6]} 3. Nd2 {[%clk 0:03:00]} 3... d5 {[%clk 0:02:53]} 4.
e3 {[%clk 0:02:59.3]} 4... Be7 {[%clk 0:02:51]} 5. f4 {[%clk 0:02:58.1]} 5... b6
{[%clk 0:02:45.5]} 6. c3 {[%clk 0:02:58]} 6... Bb7 {[%clk 0:02:40.5]} 7. Ngf3
{[%clk 0:02:57.4]} 7... Nbd7 {[%clk 0:02:40.4]} 8. Bd3 {[%clk 0:02:56.2]} 8...
c5 {[%clk 0:02:36.8]} 9. O-O {[%clk 0:02:54.2]} 9... Ne4 {[%clk 0:02:20.6]} 10.
Bxe7 {[%clk 0:02:54]} 10... Qxe7 {[%clk 0:02:20.7]} 11. Ne5 {[%clk 0:02:53.3]}
11... Nd6 {[%clk 0:02:05.8]} 12. Qg4 {[%clk 0:02:45.5]} 12... g6 {[%clk
0:02:00.3]} 13. Qh3 {[%clk 0:02:39.8]} 13... O-O-O {[%clk 0:01:57.1]} 14. a4
{[%clk 0:02:38.4]} 14... f6 {[%clk 0:01:46.2]} 15. Nxd7 {[%clk 0:02:33.9]} 15...
Qxd7 {[%clk 0:01:45.7]} 16. a5 {[%clk 0:02:34.5]} 16... c4 {[%clk 0:01:24.5]}
17. Be2 {[%clk 0:02:34.5]} 17... b5 {[%clk 0:01:22.5]} 18. b3 {[%clk 0:02:34.1]}
18... Rhe8 {[%clk 0:01:15.8]} 19. Rfb1 {[%clk 0:02:31]} 19... a6 {[%clk
0:01:07.7]} 20. bxc4 {[%clk 0:02:29]} 20... dxc4 {[%clk 0:01:06.4]} 21. Bf3
{[%clk 0:02:25.3]} 21... f5 {[%clk 0:00:54.5]} 22. Re1 {[%clk 0:02:18]} 22...
Ne4 {[%clk 0:00:50.3]} 23. Bxe4 {[%clk 0:02:14.2]} 23... Bxe4 {[%clk 0:00:49.9]}
24. Nxe4 {[%clk 0:02:11.1]} 24... fxe4 {[%clk 0:00:49.1]} 25. g4 {[%clk
0:01:59.4]} 25... Kb7 {[%clk 0:00:43.5]} 26. Qg2 {[%clk 0:01:54.5]} 26... Qd5
{[%clk 0:00:43.1]} 27. h4 {[%clk 0:01:53.9]} 27... h5 {[%clk 0:00:42.6]} 28. Kf2
{[%clk 0:01:51.3]} 28... Rf8 {[%clk 0:00:38.3]} 29. gxh5 {[%clk 0:01:46.8]}
29... e5 {[%clk 0:00:30.7]} 30. Qxg6 {[%clk 0:01:20.9]} 30... exf4 {[%clk
0:00:21.9]} 31. Qb6+ {[%clk 0:01:20.6]} 31... Kc8 {[%clk 0:00:21.2]} 32. Qxa6+
{[%clk 0:01:20.4]} 32... Kb8 {[%clk 0:00:21.7]} 33. Rab1 {[%clk 0:00:51.2]}
33... fxe3+ {[%clk 0:00:20.6]} 34. Kg1 {[%clk 0:00:51.7]} 34... Rf5 {[%clk
0:00:10.7]} 35. Rxe3 {[%clk 0:00:26.1]} 35... Rg8+ {[%clk 0:00:10.1]} 36. Kh2
{[%clk 0:00:23.5]} 36... Rxh5 {[%clk 0:00:09.2]} 37. Qb6+ {[%clk 0:00:17.9]}
37... Ka8 {[%clk 0:00:09.5]} 38. Qa6+ {[%clk 0:00:16.3]} 38... Kb8 {[%clk
0:00:09.9]} 39. Rh3 {[%clk 0:00:14.6]} 39... e3 {[%clk 0:00:07.7]} 40. Qb6+
{[%clk 0:00:13.8]} 40... Ka8 {[%clk 0:00:08.1]} 41. Qa6+ {[%clk 0:00:12.6]}
41... Kb8 {[%clk 0:00:08.4]} 42. Qb6+ {[%clk 0:00:09.9]} 42... Ka8 {[%clk
0:00:08.8]} 43. Rb2 {[%clk 0:00:08.7]} 43... Rf5 {[%clk 0:00:07.7]} 44. Qa6+
{[%clk 0:00:08]} 44... Kb8 {[%clk 0:00:07.9]} 45. Qb6+ {[%clk 0:00:07.7]} 45...
Ka8 {[%clk 0:00:08.2]} 46. Rxe3 {[%clk 0:00:06.4]} 46... Rgf8 {[%clk 0:00:04.1]}
47. Qa6+ {[%clk 0:00:04.5]} 47... Kb8 {[%clk 0:00:03.9]} 48. Qb6+ {[%clk
0:00:04.7]} 48... Ka8 {[%clk 0:00:04.5]} 49. Qa6+ {[%clk 0:00:03.5]} 49... Kb8
{[%clk 0:00:04.8]} 50. Qb6+ {[%clk 0:00:01]} 50... Ka8 {[%clk 0:00:05.2]}
1/2-1/2

[Event "*** Titled Tuesday Blitz"]
[Site "Chess.com"]
[Date "2021.04.06"]
[Round "11"]
[White "tylityli"]
[Black "annacramling"]
[Result "1-0"]
[WhiteElo "2337"]
[BlackElo "2097"]
[TimeControl "180+1"]
[EndTime "12:08:08 PDT"]
[Termination "tylityli won on time"]

1. d4 {[%clk 0:02:59.4]} 1... Nf6 {[%clk 0:02:59.8]} 2. c4 {[%clk 0:02:58.8]}
2... e6 {[%clk 0:02:59.7]} 3. Nc3 {[%clk 0:02:56.8]} 3... d5 {[%clk 0:02:59.9]}
4. cxd5 {[%clk 0:02:56.5]} 4... exd5 {[%clk 0:03:00.8]} 5. Bg5 {[%clk
0:02:56.2]} 5... Be7 {[%clk 0:03:00.8]} 6. e3 {[%clk 0:02:56.4]} 6... O-O {[%clk
0:02:59.2]} 7. Bd3 {[%clk 0:02:56.3]} 7... h6 {[%clk 0:02:59.7]} 8. Bh4 {[%clk
0:02:55.8]} 8... b6 {[%clk 0:02:59.6]} 9. Nge2 {[%clk 0:02:55.2]} 9... Bb7
{[%clk 0:02:59.9]} 10. O-O {[%clk 0:02:55.3]} 10... Nbd7 {[%clk 0:03:00.1]} 11.
f3 {[%clk 0:02:51.7]} 11... c5 {[%clk 0:02:58.8]} 12. Bf2 {[%clk 0:02:50.6]}
12... Rc8 {[%clk 0:02:53.6]} 13. a4 {[%clk 0:02:49.8]} 13... Re8 {[%clk
0:02:49.3]} 14. Ng3 {[%clk 0:02:48.7]} 14... cxd4 {[%clk 0:02:24.6]} 15. exd4
{[%clk 0:02:47.6]} 15... Nf8 {[%clk 0:02:23.6]} 16. Nf5 {[%clk 0:02:46.2]} 16...
Bb4 {[%clk 0:02:23.3]} 17. Ne2 {[%clk 0:02:40]} 17... Ne6 {[%clk 0:02:19.4]} 18.
Qb3 {[%clk 0:02:32.1]} 18... Bf8 {[%clk 0:02:18.1]} 19. a5 {[%clk 0:02:29.8]}
19... g6 {[%clk 0:02:15.5]} 20. a6 {[%clk 0:02:25.1]} 20... Bc6 {[%clk
0:02:04.5]} 21. Nfg3 {[%clk 0:02:01.2]} 21... Bd6 {[%clk 0:01:45]} 22. Rac1
{[%clk 0:01:58.5]} 22... Nf4 {[%clk 0:01:33.1]} 23. Nxf4 {[%clk 0:01:50.9]}
23... Bxf4 {[%clk 0:01:34]} 24. Rce1 {[%clk 0:01:37.8]} 24... Qd7 {[%clk
0:01:19.3]} 25. Ne2 {[%clk 0:01:28.8]} 25... Be3 {[%clk 0:01:02.7]} 26. Bb1
{[%clk 0:01:20.4]} 26... Bxf2+ {[%clk 0:01:01.9]} 27. Kxf2 {[%clk 0:01:18.4]}
27... Bb5 {[%clk 0:00:58.9]} 28. Bd3 {[%clk 0:01:16.3]} 28... Bc4 {[%clk
0:00:48.3]} 29. Bxc4 {[%clk 0:01:07.9]} 29... dxc4 {[%clk 0:00:49.2]} 30. Qc2
{[%clk 0:01:01.4]} 30... Nd5 {[%clk 0:00:46.2]} 31. Nc3 {[%clk 0:00:53.5]} 31...
Rxe1 {[%clk 0:00:44.7]} 32. Rxe1 {[%clk 0:00:43.5]} 32... Nb4 {[%clk 0:00:44.4]}
33. Qe4 {[%clk 0:00:38.4]} 33... Nd3+ {[%clk 0:00:43.7]} 34. Kg1 {[%clk
0:00:35.7]} 34... Nxe1 {[%clk 0:00:42.7]} 35. Qxe1 {[%clk 0:00:35.9]} 35...
Qxd4+ {[%clk 0:00:42.6]} 36. Kh1 {[%clk 0:00:36.1]} 36... Rd8 {[%clk 0:00:37.7]}
37. h3 {[%clk 0:00:35.5]} 37... Qd2 {[%clk 0:00:34.6]} 38. Qe4 {[%clk
0:00:30.5]} 38... Qxb2 {[%clk 0:00:25.4]} 39. Qxc4 {[%clk 0:00:30.5]} 39... Qc1+
{[%clk 0:00:15.1]} 40. Kh2 {[%clk 0:00:29.5]} 40... Qg5 {[%clk 0:00:14.6]} 41.
f4 {[%clk 0:00:25.2]} 41... Qe7 {[%clk 0:00:13.6]} 42. Ne4 {[%clk 0:00:21.3]}
42... Kg7 {[%clk 0:00:12.8]} 43. Qc3+ {[%clk 0:00:20.3]} 43... Kh7 {[%clk
0:00:03.4]} 44. Nf6+ {[%clk 0:00:19.9]} 44... Kg7 {[%clk 0:00:02.2]} 45. Nd5+
{[%clk 0:00:18.8]} 45... Kf8 {[%clk 0:00:02.8]} 46. Nxe7 {[%clk 0:00:18.8]}
46... Kxe7 {[%clk 0:00:02.5]} 47. Qe5+ {[%clk 0:00:18.4]} 47... Kf8 {[%clk
0:00:02.1]} 48. Qc7 {[%clk 0:00:17.4]} 48... Re8 {[%clk 0:00:02.2]} 49. Qxa7
{[%clk 0:00:17.1]} 49... b5 {[%clk 0:00:02.4]} 50. Qc5+ {[%clk 0:00:16]} 50...
Kg7 {[%clk 0:00:02]} 51. Qxb5 {[%clk 0:00:16.9]} 51... Re4 {[%clk 0:00:01.9]}
52. a7 {[%clk 0:00:15.2]} 52... Rxf4 {[%clk 0:00:01.2]} 53. a8=Q {[%clk
0:00:14.5]} 1-0

[Event "*** Titled Tuesday Blitz"]
[Site "Chess.com"]
[Date "2021.04.06"]
[Round "11"]
[White "Evgeny81"]
[Black "SF-96"]
[Result "0-1"]
[WhiteElo "2742"]
[BlackElo "2598"]
[TimeControl "180+1"]
[EndTime "12:08:12 PDT"]
[Termination "SF-96 won by resignation"]

1. e4 {[%clk 0:02:58.2]} 1... e5 {[%clk 0:03:00.1]} 2. Nf3 {[%clk 0:02:54.5]}
2... Nc6 {[%clk 0:03:00.4]} 3. d4 {[%clk 0:02:55]} 3... exd4 {[%clk 0:03:00.3]}
4. c3 {[%clk 0:02:55.6]} 4... d5 {[%clk 0:02:56.9]} 5. exd5 {[%clk 0:02:52.8]}
5... Qxd5 {[%clk 0:02:57.8]} 6. cxd4 {[%clk 0:02:53.2]} 6... Bb4+ {[%clk
0:02:52.1]} 7. Nc3 {[%clk 0:02:53.4]} 7... Bg4 {[%clk 0:02:52.4]} 8. Be2 {[%clk
0:02:53.9]} 8... Bxf3 {[%clk 0:02:46.9]} 9. Bxf3 {[%clk 0:02:53.9]} 9... Qc4
{[%clk 0:02:47.4]} 10. Be3 {[%clk 0:02:25.7]} 10... Bxc3+ {[%clk 0:02:41.2]} 11.
bxc3 {[%clk 0:02:25.5]} 11... Qxc3+ {[%clk 0:02:42.1]} 12. Kf1 {[%clk
0:02:25.7]} 12... Nge7 {[%clk 0:02:20.9]} 13. Rc1 {[%clk 0:02:19.9]} 13... Qa3
{[%clk 0:02:21]} 14. d5 {[%clk 0:02:11.5]} 14... Rd8 {[%clk 0:01:44.4]} 15. g3
{[%clk 0:02:00.8]} 15... O-O {[%clk 0:01:33.3]} 16. Kg2 {[%clk 0:01:56.9]} 16...
Ne5 {[%clk 0:01:26.8]} 17. Rxc7 {[%clk 0:01:49.7]} 17... Nxf3 {[%clk 0:01:22.5]}
18. Qxf3 {[%clk 0:01:50.3]} 18... Nxd5 {[%clk 0:01:23.1]} 19. Rxb7 {[%clk
0:01:48]} 19... Nxe3+ {[%clk 0:01:23.4]} 20. Qxe3 {[%clk 0:01:46.2]} 20... Qxe3
{[%clk 0:01:23.7]} 21. fxe3 {[%clk 0:01:46.6]} 21... Rd2+ {[%clk 0:01:24.4]} 22.
Kf3 {[%clk 0:01:45.9]} 22... Rxa2 {[%clk 0:01:25.3]} 23. h4 {[%clk 0:01:45.5]}
23... Re8 {[%clk 0:01:07.2]} 24. Rc1 {[%clk 0:01:41.8]} 24... Ra3 {[%clk
0:01:00]} 25. Re7 {[%clk 0:01:40.8]} 25... Rf8 {[%clk 0:00:53.2]} 26. Rcc7
{[%clk 0:01:40.5]} 26... a5 {[%clk 0:00:53.6]} 27. Ra7 {[%clk 0:01:40.5]} 27...
Ra1 {[%clk 0:00:47.6]} 28. h5 {[%clk 0:01:34.2]} 28... g6 {[%clk 0:00:36.6]} 29.
g4 {[%clk 0:01:20.4]} 29... Kg7 {[%clk 0:00:30.4]} 30. Re5 {[%clk 0:01:10.6]}
30... a4 {[%clk 0:00:29.1]} 31. Rea5 {[%clk 0:01:08.5]} 31... Re8 {[%clk
0:00:22.3]} 32. Rxa4 {[%clk 0:01:03.7]} 32... Re1 {[%clk 0:00:22.2]} 33. Ra3
{[%clk 0:01:00.7]} 33... Rf1+ {[%clk 0:00:18.9]} 34. Kg2 {[%clk 0:01:00.2]}
34... Rf6 {[%clk 0:00:17]} 35. Rc7 {[%clk 0:00:41.5]} 35... g5 {[%clk
0:00:15.3]} 36. Rc5 {[%clk 0:00:35.4]} 36... h6 {[%clk 0:00:15.5]} 37. Kg3
{[%clk 0:00:26.8]} 37... Re4 {[%clk 0:00:14.3]} 38. Rf5 {[%clk 0:00:22.7]} 38...
Rxf5 {[%clk 0:00:10.6]} 39. gxf5 {[%clk 0:00:23.6]} 39... Kf6 {[%clk 0:00:11.3]}
40. Ra6+ {[%clk 0:00:17.4]} 40... Kxf5 {[%clk 0:00:11.5]} 41. Rxh6 {[%clk
0:00:17.7]} 41... Rxe3+ {[%clk 0:00:12.1]} 42. Kg2 {[%clk 0:00:18.1]} 42... f6
{[%clk 0:00:08.2]} 43. Rh8 {[%clk 0:00:18.2]} 43... Kg4 {[%clk 0:00:07.5]} 44.
h6 {[%clk 0:00:17.9]} 44... Re2+ {[%clk 0:00:07.5]} 45. Kg1 {[%clk 0:00:17.3]}
45... Kg3 {[%clk 0:00:06.7]} 46. Kf1 {[%clk 0:00:17.1]} 46... Rh2 {[%clk
0:00:07.2]} 47. Kg1 {[%clk 0:00:16.1]} 47... g4 {[%clk 0:00:05.5]} 48. h7 {[%clk
0:00:15.7]} 48... f5 {[%clk 0:00:05.1]} 49. Kf1 {[%clk 0:00:15]} 49... f4 {[%clk
0:00:05]} 50. Ke1 {[%clk 0:00:15.4]} 50... f3 {[%clk 0:00:05.3]} 51. Kd1 {[%clk
0:00:15.1]} 51... Rh1+ {[%clk 0:00:05.5]} 52. Kd2 {[%clk 0:00:14.8]} 52... f2
{[%clk 0:00:06.2]} 53. Rf8 {[%clk 0:00:15]} 53... Rxh7 {[%clk 0:00:06.5]} 54.
Ke3 {[%clk 0:00:15.5]} 54... Re7+ {[%clk 0:00:06.8]} 55. Kd4 {[%clk 0:00:15.9]}
55... Kg2 {[%clk 0:00:07.4]} 0-1

[Event "*** Titled Tuesday Blitz"]
[Site "Chess.com"]
[Date "2021.04.06"]
[Round "11"]
[White "bazar-wokzal"]
[Black "RobertoJBM"]
[Result "0-1"]
[WhiteElo "2586"]
[BlackElo "2706"]
[TimeControl "180+1"]
[EndTime "12:08:18 PDT"]
[Termination "RobertoJBM won by checkmate"]

1. e4 {[%clk 0:03:00.9]} 1... c6 {[%clk 0:02:59.4]} 2. d4 {[%clk 0:03:00.9]}
2... d5 {[%clk 0:03:00.3]} 3. e5 {[%clk 0:03:01.2]} 3... Bf5 {[%clk 0:02:59.8]}
4. Nc3 {[%clk 0:03:01]} 4... e6 {[%clk 0:02:59.1]} 5. g4 {[%clk 0:03:01.4]} 5...
Bg6 {[%clk 0:02:59.6]} 6. Nge2 {[%clk 0:03:02]} 6... f6 {[%clk 0:03:00.2]} 7.
Nf4 {[%clk 0:03:01.5]} 7... fxe5 {[%clk 0:03:00.5]} 8. dxe5 {[%clk 0:03:00.7]}
8... Bf7 {[%clk 0:03:00.2]} 9. Qe2 {[%clk 0:03:00.2]} 9... Nd7 {[%clk
0:03:00.7]} 10. Bh3 {[%clk 0:02:59.1]} 10... Qh4 {[%clk 0:02:45.4]} 11. g5
{[%clk 0:02:50.9]} 11... O-O-O {[%clk 0:02:31.1]} 12. Rg1 {[%clk 0:02:32.7]}
12... Bc5 {[%clk 0:02:19.3]} 13. Nd1 {[%clk 0:02:06.1]} 13... h5 {[%clk
0:02:07.8]} 14. g6 {[%clk 0:01:51.1]} 14... Be8 {[%clk 0:02:08]} 15. Nxe6 {[%clk
0:01:50.7]} 15... Qxh3 {[%clk 0:02:05.2]} 16. Nxd8 {[%clk 0:01:35.5]} 16... Kxd8
{[%clk 0:02:05.1]} 17. Bg5+ {[%clk 0:01:35.1]} 17... Kc8 {[%clk 0:02:01.7]} 18.
Nc3 {[%clk 0:01:29.6]} 18... Qxh2 {[%clk 0:01:42.4]} 19. O-O-O {[%clk 0:01:28]}
19... Qxf2 {[%clk 0:01:20.9]} 20. e6 {[%clk 0:01:25.7]} 20... Ndf6 {[%clk
0:01:13.5]} 21. Qd3 {[%clk 0:01:20.2]} 21... Ne7 {[%clk 0:00:59.9]} 22. Rgf1
{[%clk 0:01:19.2]} 22... Qg2 {[%clk 0:00:57.9]} 23. Bxf6 {[%clk 0:01:17]} 23...
gxf6 {[%clk 0:00:57.7]} 24. Na4 {[%clk 0:01:11.6]} 24... Bxg6 {[%clk 0:00:53.7]}
25. Qc3 {[%clk 0:01:06.6]} 25... Bd6 {[%clk 0:00:35.4]} 26. Rg1 {[%clk
0:01:01.7]} 26... Qe4 {[%clk 0:00:33.5]} 27. Nc5 {[%clk 0:00:56.8]} 27... Qxc2+
{[%clk 0:00:29.1]} 28. Qxc2 {[%clk 0:00:56.8]} 28... Bxc2 {[%clk 0:00:30]} 29.
Nxb7 {[%clk 0:00:45.9]} 29... Kxb7 {[%clk 0:00:16.6]} 30. Kxc2 {[%clk
0:00:45.6]} 30... Rh7 {[%clk 0:00:16.4]} 31. Rdf1 {[%clk 0:00:42]} 31... Be5
{[%clk 0:00:16.2]} 32. Rf3 {[%clk 0:00:39.6]} 32... Kc7 {[%clk 0:00:16.2]} 33.
b4 {[%clk 0:00:36]} 33... Kd6 {[%clk 0:00:16.3]} 34. a4 {[%clk 0:00:36.1]} 34...
Kxe6 {[%clk 0:00:16.3]} 35. b5 {[%clk 0:00:36.5]} 35... cxb5 {[%clk 0:00:16]}
36. axb5 {[%clk 0:00:36.7]} 36... Nf5 {[%clk 0:00:16.9]} 37. Kd3 {[%clk
0:00:36.1]} 37... Nd6 {[%clk 0:00:16.9]} 38. Rb1 {[%clk 0:00:33.4]} 38... h4
{[%clk 0:00:15.3]} 39. Rh3 {[%clk 0:00:32.9]} 39... Bg3 {[%clk 0:00:14.9]} 40.
b6 {[%clk 0:00:33]} 40... axb6 {[%clk 0:00:15]} 41. Rxb6 {[%clk 0:00:33.7]}
41... Ra7 {[%clk 0:00:15.5]} 42. Ke2 {[%clk 0:00:30]} 42... Ra1 {[%clk
0:00:14.5]} 43. Kf3 {[%clk 0:00:29.4]} 43... Ke5 {[%clk 0:00:14.5]} 44. Rb8
{[%clk 0:00:28.6]} 44... Ne4 {[%clk 0:00:14.4]} 45. Re8+ {[%clk 0:00:27.9]}
45... Kf5 {[%clk 0:00:14.7]} 46. Rd8 {[%clk 0:00:26.9]} 46... Ng5+ {[%clk
0:00:14.6]} 47. Kg2 {[%clk 0:00:25.8]} 47... Ra2+ {[%clk 0:00:14.8]} 48. Kh1
{[%clk 0:00:25]} 48... Rd2 {[%clk 0:00:08.8]} 49. Re8 {[%clk 0:00:19.8]} 49...
Kg4 {[%clk 0:00:07.8]} 50. Re1 {[%clk 0:00:13.1]} 50... Kxh3 {[%clk 0:00:07]}
51. Rf1 {[%clk 0:00:10.7]} 51... Ne4 {[%clk 0:00:05.1]} 52. Kg1 {[%clk
0:00:10.5]} 52... f5 {[%clk 0:00:05.1]} 53. Rxf5 {[%clk 0:00:09.1]} 53... Rd1+
{[%clk 0:00:05.3]} 54. Rf1 {[%clk 0:00:08.5]} 54... Bf2+ {[%clk 0:00:05.3]} 55.
Kh1 {[%clk 0:00:08.7]} 55... Ng3# {[%clk 0:00:05.8]} 0-1

[Event "*** Titled Tuesday Blitz"]
[Site "Chess.com"]
[Date "2021.04.06"]
[Round "11"]
[White "GMaka"]
[Black "Mikhail_Golubev"]
[Result "0-1"]
[WhiteElo "2459"]
[BlackElo "2565"]
[TimeControl "180+1"]
[EndTime "12:08:18 PDT"]
[Termination "Mikhail_Golubev won by resignation"]

1. d4 {[%clk 0:03:00.9]} 1... Nf6 {[%clk 0:02:59.6]} 2. Bg5 {[%clk 0:02:54.1]}
2... Ne4 {[%clk 0:02:52.8]} 3. Bf4 {[%clk 0:02:53.7]} 3... c5 {[%clk 0:02:53]}
4. f3 {[%clk 0:02:53.4]} 4... Qa5+ {[%clk 0:02:50.6]} 5. c3 {[%clk 0:02:53.5]}
5... Nf6 {[%clk 0:02:49.9]} 6. d5 {[%clk 0:02:53.4]} 6... Qb6 {[%clk 0:02:49.7]}
7. Bc1 {[%clk 0:02:40.5]} 7... e6 {[%clk 0:02:33.5]} 8. e4 {[%clk 0:02:37.8]}
8... exd5 {[%clk 0:02:29.5]} 9. exd5 {[%clk 0:02:38.7]} 9... d6 {[%clk
0:02:29.3]} 10. Na3 {[%clk 0:02:35.6]} 10... Be7 {[%clk 0:02:27.7]} 11. Bb5+
{[%clk 0:02:25.9]} 11... Nbd7 {[%clk 0:02:22.8]} 12. Ne2 {[%clk 0:02:24.2]}
12... O-O {[%clk 0:02:21.3]} 13. O-O {[%clk 0:02:16]} 13... a6 {[%clk
0:02:21.1]} 14. Bc4 {[%clk 0:02:14.9]} 14... Qc7 {[%clk 0:02:13.2]} 15. Bb3
{[%clk 0:02:06.3]} 15... b5 {[%clk 0:02:12]} 16. c4 {[%clk 0:02:06.6]} 16... b4
{[%clk 0:02:03.1]} 17. Nc2 {[%clk 0:02:05.5]} 17... Nb6 {[%clk 0:02:03]} 18. Ne3
{[%clk 0:01:56.2]} 18... a5 {[%clk 0:01:57.7]} 19. Bc2 {[%clk 0:01:56]} 19... a4
{[%clk 0:01:55.6]} 20. Rb1 {[%clk 0:01:51.5]} 20... Re8 {[%clk 0:01:44.8]} 21.
b3 {[%clk 0:01:46.1]} 21... a3 {[%clk 0:01:40.2]} 22. Nf5 {[%clk 0:01:43.7]}
22... Bxf5 {[%clk 0:01:38.9]} 23. Bxf5 {[%clk 0:01:44.6]} 23... g6 {[%clk
0:01:32.6]} 24. Bd3 {[%clk 0:01:33.7]} 24... Bf8 {[%clk 0:01:33.1]} 25. Bf4
{[%clk 0:01:32]} 25... Bg7 {[%clk 0:01:30.4]} 26. Ng3 {[%clk 0:01:32]} 26...
Nbd7 {[%clk 0:01:28.3]} 27. Qd2 {[%clk 0:01:29.5]} 27... Ne5 {[%clk 0:01:25]}
28. Rbe1 {[%clk 0:01:28.2]} 28... Nfd7 {[%clk 0:01:14.6]} 29. Bc2 {[%clk
0:01:22.3]} 29... Re7 {[%clk 0:00:29.8]} 30. Ne4 {[%clk 0:01:14.2]} 30... Rae8
{[%clk 0:00:27.5]} 31. Bg5 {[%clk 0:01:11.9]} 31... f6 {[%clk 0:00:26.9]} 32.
Bh4 {[%clk 0:01:05.9]} 32... Nf7 {[%clk 0:00:26]} 33. Re2 {[%clk 0:00:54.3]}
33... g5 {[%clk 0:00:20.9]} 34. Bg3 {[%clk 0:00:47.5]} 34... f5 {[%clk
0:00:19.7]} 35. Rfe1 {[%clk 0:00:25.7]} 35... fxe4 {[%clk 0:00:18.7]} 36. Bxe4
{[%clk 0:00:26.6]} 36... h6 {[%clk 0:00:11.5]} 37. Bh7+ {[%clk 0:00:23.2]} 37...
Kf8 {[%clk 0:00:11.1]} 38. Be4 {[%clk 0:00:18.3]} 38... Nde5 {[%clk 0:00:10.3]}
39. h4 {[%clk 0:00:18]} 39... Qd7 {[%clk 0:00:09]} 40. hxg5 {[%clk 0:00:17.5]}
40... Nxg5 {[%clk 0:00:08.8]} 41. Qc2 {[%clk 0:00:13.5]} 41... Nxe4 {[%clk
0:00:04.6]} 42. Qxe4 {[%clk 0:00:14]} 42... Nf7 {[%clk 0:00:04.1]} 43. Qd3
{[%clk 0:00:10.5]} 43... Rxe2 {[%clk 0:00:03.8]} 44. Rxe2 {[%clk 0:00:11.4]}
44... Rxe2 {[%clk 0:00:03.9]} 45. Qxe2 {[%clk 0:00:12.3]} 45... Qf5 {[%clk
0:00:03.6]} 46. Kh2 {[%clk 0:00:08.2]} 46... Be5 {[%clk 0:00:03.5]} 47. Qe3
{[%clk 0:00:05.6]} 47... Qh5+ {[%clk 0:00:02.8]} 48. Kg1 {[%clk 0:00:03.7]}
48... Bxg3 {[%clk 0:00:03.7]} 49. Qe6 {[%clk 0:00:03.9]} 49... Qe5 {[%clk
0:00:03]} 50. Kf1 {[%clk 0:00:04.8]} 50... Qxe6 {[%clk 0:00:02.3]} 51. dxe6
{[%clk 0:00:05.6]} 51... Ng5 {[%clk 0:00:02.8]} 52. e7+ {[%clk 0:00:05.3]} 52...
Kxe7 {[%clk 0:00:03.7]} 53. Ke2 {[%clk 0:00:06]} 53... Ke6 {[%clk 0:00:04.2]}
54. Kd3 {[%clk 0:00:06.9]} 54... Ke5 {[%clk 0:00:04.8]} 55. f4+ {[%clk
0:00:07.8]} 0-1